Cogmind - Beta 13 @@@ ROGUE MODE // 2024.07.25 @ 21:03:51 Player: Popcorn Result: Destroyed by Y-45 Defender with Beam Rifle Performance ------------- Evolutions (2) 1000 Regions Visited (4) 800 Robots Destroyed (11) 55 Value Destroyed (105) 105 Prototype IDs (0) 0 Alien Tech Used (0) 0 Bonus (57) 57 TOTAL SCORE: 2017 Bonus ------- Follower Combat Kills 60 Friendly Fire -3 Cogmind --------- Core Integrity 0/550 Matter 169/300 Energy 90/125 System Corruption 0% Temperature Cool (18) Movement Flying (40) Location -8/Materials Parts ------- > --- POWER (2) -------- Light Ion Engine > --- PROPULSION (2) --- Flight Unit > --- UTILITY (4) ------ (None) > --- WEAPON (3) ------- (None) > --- INVENTORY (5) ---- (None) Peak State ------------ > --- POWER ------------ Light Ion Engine > --- PROPULSION ------- Aluminum Leg Aluminum Leg > --- UTILITY ---------- Visual Processing Unit Phase Shifter > --- WEAPON ----------- Assault Rifle Mining Claw > --- INVENTORY -------- Aluminum Leg Sensor Array Grenade Launcher Rocket Launcher Mining Laser [Rating: 12] Favorites ----------- Power Light Ion Engine Engine Light Ion Engine Propulsion Aluminum Leg Leg Aluminum Leg Flight Unit Flight Unit Utility Visual Processing Unit Device Improved Terrain Scanner Storage Medium Storage Unit Processor Visual Processing Unit Weapon Assault Rifle Energy Gun Small Laser Ballistic Gun Assault Rifle Launcher Rocket Launcher Special Weapon Mining Laser Slashing Weapon Mining Claw Build | -11 -10 -10 -10 -8 ------- Run | Yrd Mat Min Sub Mat Slots Evolved 4 | . . . . 4 Power 1 | . . . . 1 Propulsion . | . . . . . Utility 2 | . . . . 2 Weapon 1 | . . . . 1 Parts Attached 32 | 5 3 9 2 13 Power 5 | 1 . 1 . 3 Engine 5 | 1 . 1 . 3 Core . | . . . . . Reactor . | . . . . . Propulsion 4 | 2 . . . 2 Treads . | . . . . . Leg 3 | 2 . . . 1 Wheel . | . . . . . Hover . | . . . . . Flight 1 | . . . . 1 Utility 8 | . 3 1 2 2 Device 5 | . 1 1 2 1 Storage 2 | . 1 . . 1 Processor 1 | . 1 . . . Hackware . | . . . . . Protection . | . . . . . Artifact . | . . . . . Weapon 15 | 2 . 7 . 6 Energy Gun 1 | . . 1 . . Energy Cannon . | . . . . . Ballistic Gun 3 | 2 . 1 . . Ballistic Cannon . | . . . . . Launcher 5 | . . 2 . 3 Special Weapon 2 | . . . . 2 Impact Weapon . | . . . . . Slashing Weapon 4 | . . 3 . 1 Piercing Weapon . | . . . . . Special Melee Weapon . | . . . . . Unidentified Prototypes . | . . . . . Parts Lost 16 | . . . 3 13 Power 3 | . . . . 3 Propulsion 3 | . . . 2 1 Utility 4 | . . . 1 3 Weapon 6 | . . . . 6 Highest Loss Streak 13 | . . . 3 13 To Critical Strikes 1 | . . . 1 . Average Slot Usage (%) 87 | . 76 97 87 55 Engine 13 | . 14 14 14 5 Leg 24 | . 28 28 20 6 Device 9 | . 1 11 10 7 Processor 11 | . 4 14 14 7 Ballistic Gun 16 | . 28 13 14 6 Launcher 1 | . . 1 . 4 Slashing Weapon 8 | . . 11 14 6 Naked Turns 2 | . . . . 2 Heaviest Build 25 | 6 7 10 8 25 Greatest Support 20 | 20 20 20 20 10 Greatest Overweight (x) 5 | . . . 2 5 Average Overweight (x) . | . . . . 1 Largest Inventory Capacity 10 | 5 5 5 5 10 Average Capacity 5 | 5 5 5 5 9 Most Carried 5 | 3 5 5 5 4 Average Carried 4 | . 4 4 5 2 Final Capacity 5 | 5 5 5 5 5 Final Carried 5 | 3 5 5 5 . Class Distribution -------------------- 100% | Mutant Dominant Class ---------------- Mutant | -10/Materials Mutant | -10/Mines Mutant | -10/Subcaves Mutant | -8/Materials Resources | -11 -10 -10 -10 -8 ----------- Run | Yrd Mat Min Sub Mat Matter Collected 562 | 187 91 246 23 15 Remotely . | . . . . . Salvage Created 242 | 48 . 151 . 43 Parts 22 | 3 . 9 . 10 Haulers Intercepted . | . . . . . Recyclers Shooed 1 | . . . . 1 Parts Field Recycled . | . . . . . Retrieved Matter . | . . . . . Parts Self-Destructed . | . . . . . Prevented . | . . . . . Kills | -11 -10 -10 -10 -8 ------- Run | Yrd Mat Min Sub Mat Combat Hostiles Destroyed 5 | 1 . . . 4 Guns 2 | 1 . . . 1 AOE 3 | . . . . 3 Classes Destroyed 6 | 1 . 3 . 2 Worker 3 | . . 2 . 1 Builder 1 | . . . . 1 Tunneler 1 | . . 1 . . Recycler 1 | . . 1 . . Swarmer 4 | . . . . 4 Grunt 1 | 1 . . . . Best Kill Streak 6 | 1 . 4 . 6 Combat Bots Only 4 | 1 . . . 4 Max Kills in Single Turn 3 | 1 . 1 . 3 Gunslinging . | . . . . . Exploded 2 | . . . . 2 Melee . | . . . . . Uniques/NPCs Destroyed . | . . . . . Combat | -11 -10 -10 -10 -8 -------- Run | Yrd Mat Min Sub Mat Hostile Shots Fired 135 | 3 . 9 23 100 Missed 44 | 2 . 3 8 31 Damage Taken 1756 | 12 . 198 319 1227 Core 699 | . . 42 107 550 Absorbed by Shields . | . . . . . Core Remaining (%) 70 | 100 . . 40 . Volleys Fired 27 | 2 . 17 1 7 Largest 2 | 2 . 2 1 2 Hottest 70 | 40 . 70 20 63 Shots Fired 41 | 4 . 25 1 11 Gun 25 | 4 . 14 1 6 Cannon . | . . . . . Launcher 16 | . . 11 . 5 Special . | . . . . . Kinetic 23 | 4 . 12 1 6 Thermal 2 | . . 2 . . Explosive 16 | . . 11 . 5 Electromagnetic . | . . . . . Robot Hit Streak 5 | 3 . 5 1 . Robot Miss Streak 4 | 1 . 2 . 4 Penetration Max . | . . . . . Secondary Targets . | . . . . . Shots Hit Robots 20 | 3 . 16 1 . Core Hits 35 | 2 . 26 . 7 Critical Kills . | . . . . . Critical Parts Destroyed . | . . . . . Critical Strikes . | . . . . . Melee Attacks 4 | . . 4 . . Impact . | . . . . . Slashing 4 | . . 4 . . Piercing . | . . . . . Sneak Attacks . | . . . . . Combat Hostiles . | . . . . . Follow-up Attacks . | . . . . . Damage Inflicted 1368 | 33 . 969 14 352 Guns 98 | 33 . 37 14 14 Cannons . | . . . . . Explosions 1034 | . . 696 . 338 Melee 236 | . . 236 . . Ramming . | . . . . . Kinetic 87 | 33 . 26 14 14 Thermal 11 | . . 11 . . Explosive 1034 | . . 696 . 338 Electromagnetic . | . . . . . Impact . | . . . . . Slashing 236 | . . 236 . . Piercing . | . . . . . Highest Corruption . | . . . . . Average Corruption . | . . . . . Corruption Purged . | . . . . . Corruption Blocked . | . . . . . Overload Shots . | . . . . . Overflow Damage 18 | . . 18 . . Projectiles . | . . . . . Explosions . | . . . . . Melee 18 | . . 18 . . Knockbacks . | . . . . . Impact . | . . . . . Kinetic . | . . . . . Secondary . | . . . . . Self-Inflicted Damage . | . . . . . Shots . | . . . . . Rammed . | . . . . . Targets Rammed . | . . . . . Kicked . | . . . . . Crushed . | . . . . . Highest Temperature 30 | . . 9 . 30 Average Temperature 9 | . . 6 . 15 Received Heat Transfer 447 | 6 . 42 66 333 Siege Activations . | . . . . . Robots Corrupted . | . . . . . Combat Hostiles . | . . . . . Parts Fried . | . . . . . Impact Corruptions . | . . . . . Robots Melted . | . . . . . Combat Hostiles . | . . . . . Parts Melted . | . . . . . Heat Transferred 31 | . . 31 . . Parts Sabotaged . | . . . . . Parts Stolen . | . . . . . Parts Stripped . | . . . . . Power Chain Reactions . | . . . . . Alert | -11 -10 -10 -10 -8 ------- Run | Yrd Mat Min Sub Mat Peak Influence 153 | 20 43 75 . 153 Initial 16 | . 13 16 . . Average 40 | 2 25 49 . 41 Maximum Alert Level . | . . . . . Low Security (%) 100 | 100 100 100 . 100 Level 1 . | . . . . . Level 2 . | . . . . . Level 3 . | . . . . . Level 4 . | . . . . . Level 5 . | . . . . . High Security . | . . . . . Max Security . | . . . . . Squads Dispatched 4 | . 2 . . 2 Investigation 1 | . 1 . . . Extermination . | . . . . . Reinforcement 3 | . 1 . . 2 Assault . | . . . . . Garrison . | . . . . . Intercept . | . . . . . Searches Triggered . | . . . . . Construction Impeded . | . . . . . Haulers Reinforced . | . . . . . Active Scanning Responses . | . . . . . Cargo Convoy Interrupts . | . . . . . Stealth | -11 -10 -10 -10 -8 --------- Run | Yrd Mat Min Sub Mat Distress Signals 1 | . . . . 1 Communications Jammed . | . . . . . Distress Signals . | . . . . . Times Spotted 43 | 1 7 12 4 19 Peak Tracking Total 15 | 1 5 15 4 13 Tactical Retreats 1 | . . . . 1 Traps | -11 -10 -10 -10 -8 ------- Run | Yrd Mat Min Sub Mat Traps Triggered 1 | . 1 . . . Indirectly . | . . . . . Trap Hack Attempts . | . . . . . Triggered . | . . . . . Disarmed . | . . . . . Reprogrammed . | . . . . . Reused . | . . . . . Traps Extracted . | . . . . . Installed . | . . . . . Triggered . | . . . . . Machines | -11 -10 -10 -10 -8 ---------- Run | Yrd Mat Min Sub Mat Machines Disabled 1 | . . 1 . . Max in Single Turn . | . . . . . Machines Repaired . | . . . . . Machines Dismantled . | . . . . . Machines Sabotaged . | . . . . . Overloaded Fab Kills . | . . . . . Hacking | -11 -10 -10 -10 -8 --------- Run | Yrd Mat Min Sub Mat Machines Accessed . | . . . . . Terminals . | . . . . . Fabricators . | . . . . . Repair Stations . | . . . . . Recycling Units . | . . . . . Scanalyzers . | . . . . . Garrison Access . | . . . . . Total Hacks . | . . . . . Successful . | . . . . . Failed . | . . . . . Catastrophic . | . . . . . Database Lockouts . | . . . . . Manual . | . . . . . Terminals . | . . . . . Fabricators . | . . . . . Repair Stations . | . . . . . Recycling Units . | . . . . . Scanalyzers . | . . . . . Garrison Access . | . . . . . Terminal Hacks . | . . . . . Fabricator Hacks . | . . . . . Repair Station Hacks . | . . . . . Recycling Unit Hacks . | . . . . . Scanalyzer . | . . . . . Garrison Access Hacks . | . . . . . Unauthorized Hacks . | . . . . . Terminals . | . . . . . Fabricators . | . . . . . Repair Stations . | . . . . . Recycling Units . | . . . . . Scanalyzers . | . . . . . Garrison Access . | . . . . . Data Cores Recovered . | . . . . . Used . | . . . . . Hacking Detections . | . . . . . Full Trace Events . | . . . . . Feedback Events . | . . . . . Feedback Blocked . | . . . . . Robot Schematics Acquired . | . . . . . Robots Built . | . . . . . Authchips . | . . . . . Time . | . . . . . Total Robot Build Rating . | . . . . . Part Schematics Acquired . | . . . . . Parts Built . | . . . . . Authchips . | . . . . . Time . | . . . . . Total Part Build Rating . | . . . . . Parts Repaired . | . . . . . Time . | . . . . . Parts Recycled . | . . . . . Recycled Matter . | . . . . . Retrieved Matter . | . . . . . Retrieved Components . | . . . . . Parts Scanalyzed . | . . . . . Part Schematics Acquired . | . . . . . Parts Damaged . | . . . . . Bothacking | -11 -10 -10 -10 -8 ------------ Run | Yrd Mat Min Sub Mat Used RIF Installer . | . . . . . Robots Hacked . | . . . . . Non-combat . | . . . . . Combat . | . . . . . Robot Hacks Applied . | . . . . . Relay Couplers Released . | . . . . . Fabnet Peak Effective % . | . . . . . Robots Rewired . | . . . . . Allies Hacked . | . . . . . Hacks Repelled . | . . . . . Allies | -11 -10 -10 -10 -8 -------- Run | Yrd Mat Min Sub Mat Total Allies 1 | . . 1 . . Largest Group 1 | . . 1 . . Highest-Rated Group 31 | . . 31 . . Highest-Rated Ally 31 | . . 31 . . Total Orders . | . . . . . Ally Attacks 6 | . . 6 . . Total Damage 105 | . . 105 . . Kills 2 | . . 2 . . Allies Corrupted . | . . . . . Allies Melted . | . . . . . Intel | -11 -10 -10 -10 -8 ------- Run | Yrd Mat Min Sub Mat Robot Analysis Total . | . . . . . Derelict Logs Recovered 2 | . . 2 . . Drone Launches . | . . . . . Drone Recoveries . | . . . . . Exploration | -11 -10 -10 -10 -8 ------------- Run | Yrd Mat Min Sub Mat Turns Passed 1201 | 85 235 682 70 129 Spaces Moved 850 | 66 182 501 52 49 Core 37 | 14 . . 9 14 Treads . | . . . . . Legs 812 | 52 182 501 43 34 Wheels . | . . . . . Hover . | . . . . . Flight 1 | . . . . 1 Fastest Speed 40 | 50 120 120 120 40 Average Speed 122 | 105 120 120 125 185 Slowest Speed 300 | 120 120 120 150 300 Overloaded Moves . | . . . . . Propulsion Burnouts . | . . . . . Robots Hopped . | . . . . . Cave-ins Triggered . | . . . . . Exploration Rate (%) 27 | 9 34 81 8 7 Regions Visited 4 Branch Regions 2 Pre-discovered Areas 1 | . . 1 . . Known Exits Taken . | . . . . . Unknown Exits Taken 4 | 1 1 1 1 . Scrap Searched 2 | . . 2 . . Spaces Dug . | . . . . . Terrain Destroyed 106 | . . 42 . 64 Melee . | . . . . . Projectile . | . . . . . AOE 106 | . . 42 . 64 Terrain Rammed . | . . . . . Walls Destroyed . | . . . . . Machines Disabled . | . . . . . Actions | -11 -10 -10 -10 -8 --------- Run | Yrd Mat Min Sub Mat Total 953 | 75 199 548 56 75 Wait 15 | . 5 10 . . Move 846 | 65 181 500 51 49 Hop . | . . . . . Pick Up 13 | 3 5 3 . 2 Fast Attach 19 | 5 3 3 2 6 Attach 7 | . . . . 7 Detach 2 | . . . . 2 Swap 6 | . . 6 . . Drop 14 | . 5 5 2 2 Fire 27 | 2 . 17 1 7 Melee 4 | . . 4 . . Ram . | . . . . . Kick . | . . . . . Crush . | . . . . . Escape Stasis . | . . . . . Rewire . | . . . . . Trap . | . . . . . Miscellaneous . | . . . . . Route ------- -11/Scrapyard -10/Materials -10/Mines (discovered 3 exits: [*Mat x2] / [*Sub]) -10/Subcaves -8/Materials History --------- Turn | Location | Event 2 | -11/Scrapyard | Met Revision 17 65 | -11/Scrapyard | Discovered new exit (range 8) 86 | -11/Scrapyard | Entered Materials 221 | -10/Materials | Discovered new exit (range 7) 246 | -10/Materials | Met 8R-AWN 321 | -10/Materials | Entered Mines 323 | -10/Mines | Followed 8R-AWN into the Mines 339 | -10/Mines | Build established: Mutant 349 | -10/Mines | Learned location of Mines (-9) 397 | -10/Mines | Assembled infested the area 422 | -10/Mines | Received a Rocket Launcher from a helpful Derelict 590 | -10/Mines | Learned Materials emergency access door positions 599 | -10/Mines | Discovered new exit (range 11) 740 | -10/Mines | Discovered new exit (range 10) 745 | -10/Mines | Received a Mining Laser from a helpful Derelict 988 | -10/Mines | Discovered new exit (range 11) 1003 | -10/Mines | Entered Subcaves 1003 | -10/Subcaves | Discovered new exit (range 15) 1073 | -10/Subcaves | Core integrity fell below 50% 1073 | -10/Subcaves | Entered Materials 1073 | -8/Materials | Evolved 4 slots: Power x1, Utility x2, Weapon x1 1097 | -8/Materials | Lost 3 parts (2n1u) 1187 | -8/Materials | Core integrity fell below 50% 1195 | -8/Materials | Core integrity fell below 20% 1202 | -8/Materials | Destroyed by Y-45 Defender with Beam Rifle Last Messages --------------- Visual Processing Unit destroyed. Critical hit (Blast). K-01 Serf collects debris. U-05 Engineer lays Concrete. The unstable cave ceiling collapses. S-10 Pest destroyed. Med. Storage Unit destroyed. Acquired Lgt. Ion Engine. The unstable cave ceiling collapses. Acquired Lgt. Ion Engine. S-10 Pest destroyed. Lgt. Ion Engine destroyed. Acquired Flight Unit. Flying robots can pass through spaces occupied by others, even hostile robots. U-05 Engineer lays Concrete. Lgt. Ion Engine destroyed. U-05 Engineer lays Concrete. Acquired Lgt. Ion Engine. U-05 Engineer lays Concrete. Map ----- +----------------------------------------------------+ | ?????????????????????????????????????????????????? | | ?????????????????????????????????????????????????? | | ?????????????????????????????????????????????????? | | ?????????????????????????????????????????????????? | | ?????????????????????????????????????????????????? | | ?????????????????????????????????????????????????? | | ???????????????????????????????????????????+?????? | | ?????????????????????????????????????????????????? | | ??????????????????????????????+???##!#???????????? | | ??????????????????????????????? # #%##??????????? | | ??????????????????????? ??????? #!# #?????????? | | ?????????????????????# ???????? = ?????????? | | ?????????????????????# ???????? ?????????? | | ?????????????????????# ????????? +?????????? | | ?????????????????????# w???????? #?????????? | | ?????????????????????# ????????? % #?????????? | | ?????????????????????# ######### [ #?????????? | | ?????????????????????# # * ##= ##?????????? | | ?????????????????????# # !##%u #?????????# | | ?????????????????????# + "T" # =u #?????????# | | ?????????????????????#w # """ %[ ##????????# | | ????????????????????## #g !# Yg #????????# | | ????????????????????#; # H ########## | | ?????????????????????# [% % g ogg | | ?????????????????????# g | | ?????????????????????# @ | | ?????????????????????### # # % ############## | | ???????????????????????## # # ###?????????? | | ????????????????????????##############???????????? | | ?????????????????????????????????????????????????? | | ?????????????????????????????????????????????????? | | ?????????????????????????????????????????????????? | | | | | | | | | | | | | | | | | | | | | | | | | | | | | | | | | | | | | +----------------------------------------------------+ Best States ------------- Heat Dissipation 31 Energy Generation 10 Energy Capacity 125 Matter Stores 300 Matter Capacity 300 Sight Range 18 Robot Scan Range 14 Terrain Scan Range 16 Terrain Scan Density 10 Phase Shifting 5 Evasion (%) 60 Item Schematics ----------------- None Robot Schematics ------------------ None Fabricated ------------ Nothing Alien Tech Used ----------------- None Achievements -------------- I Survived The Infestation Slippery One Challenges ------------ None Game ------ Seed AblativeSignalThermoblaster Manual? 0 Play Time 00:28:49 Cumulative 3.7 hours Start 2024.07.22 @ 19:46:45 End 2024.07.25 @ 21:03:51 Sessions 2 Manual Loads 0 Difficulty Rogue Special Mode None Game No. 2 Rogue 2 Adventurer 0 Explorer 0 Win Type - Total 0 Types 0/0/0/0/0/0/0/0/0 Lore% 3 Gallery% 6 Achievement% 8 Wizard Run 0 Options --------- Layout 1 ASCII 0 Keyboard 0 Movement Numpad Keybinds 0 Fullscreen 1 Font 24/Smallcaps Map View 50x35 Zoom Use 0% Tactical HUD 0 Map Filters NONE Filters NONE Steam 1 RUN: c3f0b3cf-ccd5-439d-9117-89576551c539